fUST/lending_fUST_20250626
["ID","MTS","AMOUNT","RATE_DAILY","PERIOD"]
[367834315,1750939865830,-823.0,0.00021454,2]
[367834316,1750939865840,-2550.20025974,0.00021486,5]
[367834317,1750939865849,-4429.0,0.000215,2]
[367834318,1750939865859,-500.0,0.000215,2]
[367834319,1750939865869,-2000.0,0.000215,2]
[367834320,1750939865879,-151.0,0.000215,3]
[367834321,1750939865888,-6544.25534237,0.00021536,2]
[367834322,1750939865898,-2874.18214536,0.000216,3]
[367834323,1750939865908,-187.70087121,0.00021619,5]
[367834324,1750939865917,-1441.7,0.00021643,2]
[367834325,1750939865927,-550.51,0.00021643,2]
[367834326,1750939865936,-460.0,0.00021643,2]
[367834327,1750939865946,-537.32,0.00021643,2]
[367834328,1750939865956,-488.95,0.00021643,2]
[367834329,1750939865967,-415.06,0.00021643,2]
[367834330,1750939865976,-460.0,0.00021643,2]
[367834331,1750939865987,-460.0,0.00021643,2]
[367834332,1750939865998,-559.8,0.00021643,2]
[367834333,1750939866009,-460.0,0.00021643,2]
[367834334,1750939866019,-985.93,0.00021643,2]
[367834335,1750939866030,-3899.1,0.00021643,2]
[367834336,1750939866041,-550.62,0.00021643,2]
[367834337,1750939866050,-3443.2,0.00021643,2]
[367834338,1750939866060,-1393.74,0.00021643,2]
[367834339,1750939866070,-529.46,0.00021643,2]
[367834340,1750939866080,-460.0,0.00021643,2]
[367834341,1750939866090,-667.0,0.00021643,2]
[367834342,1750939866100,-497.91,0.00021643,2]
[367834343,1750939866110,-2163.95,0.00021643,2]
[367834344,1750939866120,-460.0,0.00021643,2]
[367834345,1750939866131,-2411.78,0.00021643,2]
[367834346,1750939866141,-460.0,0.00021643,2]
[367834347,1750939866151,-460.0,0.00021643,2]
[367834348,1750939866161,-498.03,0.00021643,2]
[367834349,1750939866171,-658.65,0.00021643,2]
[367834350,1750939866182,-621.12,0.00021643,2]
[367834351,1750939866192,-686.0,0.00021643,2]
[367834352,1750939866202,-1079.19,0.00021643,2]
[367834353,1750939866214,-573.8,0.00021643,2]
[367834354,1750939866224,-1517.82,0.00021643,2]
[367834355,1750939866234,-515.04,0.00021643,2]
[367834356,1750939866244,-597.73,0.00021643,2]
[367834357,1750939866254,-858.99,0.00021643,2]
[367834358,1750939866395,-547.52,0.00021643,2]
[367834359,1750939866405,-1475.91,0.00021643,2]
[367834360,1750939866414,-2648.38,0.00021643,2]
[367834361,1750939866424,-838.14,0.00021643,2]
[367834362,1750939866433,-667.42,0.00021643,2]
[367834363,1750939866442,-3198.69,0.00021643,2]
[367834364,1750939866452,-486.06,0.00021643,2]
[367834365,1750939866462,-574.15,0.00021643,2]
[367834366,1750939866471,-460.0,0.00021643,2]
[367834367,1750939866481,-690.59,0.00021643,2]
[367834368,1750939866491,-1708.91,0.00021643,2]
[367834369,1750939866500,-589.76,0.00021643,2]
[367834370,1750939866510,-1679.98,0.00021643,2]
[367834371,1750939866519,-1152.16,0.00021643,2]
[367834372,1750939866529,-1518.28,0.00021643,2]
[367834373,1750939866539,-743.79,0.00021643,2]
[367834374,1750939866550,-483.71,0.00021643,2]
[367834375,1750939866559,-460.0,0.00021643,2]
[367834376,1750939866568,-540.44,0.00021643,2]
[367834377,1750939866578,-1228.47,0.00021643,2]
[367834378,1750939866588,-665.65,0.00021643,2]
[367834379,1750939866601,-500.50431638,0.00021643,2]
[367834380,1750939866612,-582.37,0.00021643,2]
[367834381,1750939866622,-1888.28,0.00021643,2]
[367834382,1750939866633,-462.04,0.00021643,2]
[367834383,1750939866643,-460.0,0.00021643,2]
[367834384,1750939866653,-471.22,0.00021643,2]
[367834385,1750939866663,-517.13,0.00021643,2]
[367834386,1750939866675,-1623.0,0.00021643,2]
[367834387,1750939866686,-1190.2,0.00021643,2]
[367834388,1750939866696,-2144.69,0.00021643,2]
[367834389,1750939866707,-782.22,0.00021643,2]
[367834390,1750939866716,-460.0,0.00021643,2]
[367834391,1750939866726,-490.8,0.00021643,2]
[367834392,1750939866735,-160.0,0.000217,3]
[367834393,1750939866745,-2550.20025974,0.00021762,5]
[367834394,1750939866756,-151.0,0.0002177,2]
[367834395,1750939866766,-500.0,0.0002178,17]
[367834396,1750939866776,-2000.0,0.000218,2]
[367834397,1750939866786,-177.4156324,0.00021809,2]
[367834398,1750939866798,-159.2154015,0.00021809,2]
[367834399,1750939866809,-153.0,0.00021809,2]
[367834400,1750939866818,-575.0264769,0.00021809,2]
[367834401,1750939866828,-575.0264769,0.00021809,2]
[367834402,1750939866839,-153.0,0.00021809,2]
[367834403,1750939866849,-575.0264769,0.00021809,2]
[367834404,1750939866859,-153.0,0.00021809,2]
[367834405,1750939866869,-575.0264769,0.00021809,2]
[367834406,1750939866879,-574.1049965,0.00021809,2]
[367834407,1750939866890,-808.0,0.00021811,2]
[367834408,1750939866900,-519.50602433,0.00021819,2]
[367834409,1750939866911,-1000.0,0.00021819,2]
[367834410,1750939866922,-500.24913455,0.00021819,2]
[367834411,1750939866931,-1000.0,0.00021819,2]
[367834412,1750939866940,-400.35626263,0.00021819,2]
[367834413,1750939866950,-500.0,0.00021819,2]
[367834414,1750939866960,-1000.0,0.00021819,2]
[367834415,1750939866969,-1000.0,0.00021819,2]
[367834416,1750939866979,-1085.81371238,0.00021827,2]
[367834417,1750939866989,-1000.0,0.00021827,2]
[367834418,1750939866998,-500.0,0.00021827,2]
[367834419,1750939867008,-1000.0,0.00021827,2]
[367834420,1750939867018,-500.43078147,0.00021827,2]
[367834421,1750939867028,-653.17919225,0.00021827,2]
[367834422,1750939867038,-1000.0,0.00021827,2]
[367834423,1750939867047,-1000.0,0.00021827,2]
[367834424,1750939867057,-1000.0,0.00021855,2]
[367834425,1750939867066,-1000.0,0.00021909,2]
[367834426,1750939867076,-1000.0,0.00021909,2]
[367834427,1750939867085,-1441.7,0.00021917,2]
[367834428,1750939867094,-550.51,0.00021917,2]
[367834429,1750939867103,-268.1626456,0.00021917,2]
[367834430,1750939867113,-537.32,0.00021917,2]
[367834431,1750939867122,-500.0,0.00021917,2]
[367834432,1750939867132,-500.0,0.00021917,2]
[367834433,1750939867141,-500.0,0.00021917,2]
[367834434,1750939867150,-500.0,0.00021917,2]
[367834435,1750939867159,-500.0,0.00021917,2]
[367834436,1750939867168,-500.0,0.00021917,2]
[367834437,1750939867177,-500.0,0.00021917,2]
[367834438,1750939867187,-500.0,0.00021917,2]
[367834439,1750939867196,-500.0,0.00021917,2]
[367834440,1750939867205,-500.0,0.00021917,2]
[367834441,1750939867214,-500.0,0.00021917,2]
[367834442,1750939867224,-500.0,0.00021917,2]
[367834443,1750939867233,-500.0,0.00021917,2]
[367834444,1750939867242,-572.79783755,0.00021917,2]
[367834445,1750939867251,-488.95,0.00021917,2]
[367834446,1750939867261,-1917.8121434,0.00021917,2]
[367834447,1750939867273,-460.0,0.00021917,2]
[367834448,1750939867284,-460.0,0.00021917,2]
[367834449,1750939867293,-559.8,0.00021917,2]
[367834450,1750939867303,-985.93,0.00021917,2]
[367834451,1750939867312,-3899.1,0.00021917,2]
[367834452,1750939867322,-550.62,0.00021917,2]
[367834453,1750939867332,-3443.2,0.00021917,2]
[367834454,1750939867341,-1393.74,0.00021917,2]
[367834455,1750939867351,-529.46,0.00021917,2]
[367834456,1750939867360,-460.0,0.00021917,2]
[367834457,1750939867369,-667.0,0.00021917,2]
[367834458,1750939867379,-497.91,0.00021917,2]
[367834459,1750939867388,-2163.95,0.00021917,2]
[367834460,1750939867397,-460.0,0.00021917,2]
[367834461,1750939867407,-2411.78,0.00021917,2]
[367834462,1750939867417,-460.0,0.00021917,2]
[367834463,1750939867426,-356.33013205,0.00021917,2]
[367834464,1750939867436,-498.03,0.00021917,2]
[367834465,1750939867447,-658.65,0.00021917,2]
[367834466,1750939867457,-621.12,0.00021917,2]
[367834467,1750939867466,-686.0,0.00021917,2]
[367834468,1750939867476,-1079.19,0.00021917,2]
[367834469,1750939867485,-460.0,0.00021917,2]
[367834470,1750939867496,-541.7910896,0.00021917,2]
[367834471,1750939867507,-573.8,0.00021917,2]
[367834472,1750939867517,-1517.82,0.00021917,2]
[367834473,1750939867527,-515.04,0.00021917,2]
[367834474,1750939867537,-597.73,0.00021917,2]
[367834475,1750939867547,-858.99,0.00021917,2]
[367834476,1750939867556,-547.52,0.00021917,2]
[367834477,1750939867566,-1475.91,0.00021917,2]
[367834478,1750939867576,-2648.38,0.00021917,2]
[367834479,1750939867585,-838.14,0.00021917,2]
[367834480,1750939867599,-667.42,0.00021917,2]
[367834481,1750939867608,-3198.69,0.00021917,2]
[367834482,1750939867617,-486.06,0.00021917,2]
[367834483,1750939867626,-574.15,0.00021917,2]
[367834484,1750939867636,-460.0,0.00021917,2]
[367834485,1750939867646,-690.59,0.00021917,2]
[367834486,1750939867655,-1708.91,0.00021917,2]
[367834487,1750939867664,-589.76,0.00021917,2]
[367834488,1750939867676,-1679.98,0.00021917,2]
[367834489,1750939867687,-1152.16,0.00021917,2]
[367834490,1750939867696,-1518.28,0.00021917,2]
[367834491,1750939867706,-743.79,0.00021917,2]
[367834492,1750939867715,-483.71,0.00021917,2]
[367834493,1750939867724,-190.18603949,0.00021917,2]
[367834494,1750939867734,-540.44,0.00021917,2]
[367834495,1750939867743,-1228.47,0.00021917,2]
[367834496,1750939867753,-665.65,0.00021917,2]
[367834497,1750939867762,-582.37,0.00021917,2]
[367834498,1750939867771,-1888.28,0.00021917,2]
[367834499,1750939867780,-462.04,0.00021917,2]
[367834500,1750939867790,-460.0,0.00021917,2]
[367834501,1750939867799,-500.0,0.00021917,2]
[367834502,1750939867808,-500.0,0.00021917,2]
[367834503,1750939867817,-500.0,0.00021917,2]
[367834504,1750939867826,-500.0,0.00021917,2]
[367834505,1750939867835,-500.0,0.00021917,2]
[367834506,1750939867844,-502.54535726,0.00021917,2]
[367834507,1750939867853,-471.22,0.00021917,2]
[367834508,1750939867862,-517.13,0.00021917,2]
[367834509,1750939867871,-1623.0,0.00021917,2]
[367834510,1750939867881,-1190.2,0.00021917,2]
[367834511,1750939867891,-2144.69,0.00021917,2]
[367834512,1750939867900,-782.22,0.00021917,2]
[367834513,1750939867910,-460.0,0.00021917,2]
[367834514,1750939867919,-490.8,0.00021917,2]
[367834515,1750939867928,-153.0,0.00021918,2]
[367834516,1750939867937,-153.0,0.00021918,2]
[367834517,1750939867947,-153.0,0.00021918,2]
[367834518,1750939867955,-153.0,0.00021918,2]
[367834519,1750939867964,-153.0,0.00021918,2]
[367834520,1750939867973,-153.0,0.00021918,2]
[367834521,1750939867983,-153.0,0.00021918,2]
[367834522,1750939867992,-153.0,0.00021918,2]
[367834523,1750939868001,-153.0,0.00021918,2]
[367834524,1750939868010,-153.0,0.00021918,2]
[367834525,1750939868019,-153.0,0.00021918,2]
[367834526,1750939868030,-153.0,0.00021918,2]
[367834527,1750939868040,-153.0,0.00021918,2]
[367834528,1750939868050,-153.0,0.00021918,2]
[367834529,1750939868059,-153.0,0.00021918,2]
[367834530,1750939868069,-153.0,0.00021918,2]
[367834531,1750939868078,-153.0,0.00021918,2]
[367834532,1750939868088,-153.0,0.00021918,2]
[367834533,1750939868099,-153.0,0.00021918,2]
[367834534,1750939868109,-153.0,0.00021918,2]
[367834535,1750939868119,-153.0,0.00021918,2]
[367834536,1750939868128,-153.0,0.00021918,2]
[367834537,1750939868137,-153.0,0.00021918,2]
[367834538,1750939868147,-153.0,0.00021918,2]
[367834539,1750939868156,-153.0,0.00021918,2]
[367834540,1750939868166,-153.0,0.00021918,2]
[367834541,1750939868175,-153.0,0.00021918,2]
[367834542,1750939868186,-153.0,0.00021918,2]
[367834543,1750939868195,-153.0,0.00021918,2]
[367834544,1750939868204,-153.0,0.00021918,2]
[367834545,1750939868214,-153.0,0.00021918,2]
[367834546,1750939868223,-153.0,0.00021918,2]
[367834547,1750939868233,-153.0,0.00021918,2]
[367834548,1750939868242,-153.0,0.00021918,2]
[367834549,1750939868251,-153.0,0.00021918,2]
[367834550,1750939868261,-153.0,0.00021918,2]
[367834551,1750939868271,-153.0,0.00021918,2]
[367834552,1750939868280,-153.0,0.00021918,2]
[367834553,1750939868289,-153.0,0.00021918,2]
[367834554,1750939868298,-153.0,0.00021918,2]
[367834555,1750939868307,-153.0,0.00021918,2]
[367834556,1750939868317,-153.0,0.00021918,2]
[367834557,1750939868326,-153.0,0.00021918,2]
[367834558,1750939868335,-153.0,0.00021918,2]
[367834559,1750939868345,-153.0,0.00021918,2]
[367834560,1750939868354,-153.0,0.00021918,2]
[367834561,1750939868363,-153.0,0.00021918,2]
[367834562,1750939868372,-153.0,0.00021918,2]
[367834563,1750939868381,-153.0,0.00021918,2]
[367834564,1750939868392,-153.0,0.00021918,2]
[367834565,1750939868400,-153.0,0.00021918,2]
[367834566,1750939868410,-153.0,0.00021918,2]
[367834567,1750939868419,-153.0,0.00021918,2]
[367834568,1750939868427,-153.0,0.00021918,2]
[367834569,1750939868437,-153.0,0.00021918,2]
[367834570,1750939868447,-153.0,0.00021918,2]
[367834571,1750939868456,-153.0,0.00021918,2]
[367834572,1750939868465,-153.0,0.00021918,2]
[367834573,1750939868474,-153.0,0.00021918,2]
[367834574,1750939868483,-153.0,0.00021918,2]
[367834575,1750939868493,-153.0,0.00021918,2]
[367834576,1750939868502,-153.0,0.00021918,2]
[367834577,1750939868511,-153.0,0.00021918,2]
[367834578,1750939868520,-153.0,0.00021918,2]
[367834579,1750939868530,-153.0,0.00021918,2]
[367834580,1750939868539,-153.0,0.00021918,2]
[367834581,1750939868548,-153.0,0.00021918,2]
[367834582,1750939868556,-153.0,0.00021918,2]
[367834583,1750939868566,-153.0,0.00021918,2]
[367834584,1750939868575,-153.0,0.00021918,2]
[367834585,1750939868583,-153.0,0.00021918,2]
[367834586,1750939868594,-153.0,0.00021918,2]
[367834587,1750939868606,-153.0,0.00021918,2]
[367834588,1750939868615,-153.0,0.00021918,2]
[367834589,1750939868623,-153.0,0.00021918,2]
[367834590,1750939868632,-153.0,0.00021918,2]
[367834591,1750939868642,-153.0,0.00021918,2]
[367834592,1750939868651,-153.0,0.00021918,2]
[367834593,1750939868660,-153.0,0.00021918,2]
[367834594,1750939868670,-153.0,0.00021918,2]
[367834595,1750939868679,-153.0,0.00021918,2]
[367834596,1750939868689,-153.0,0.00021918,2]
[367834597,1750939868698,-153.0,0.00021918,2]
[367834598,1750939868708,-153.0,0.00021918,2]
[367834599,1750939868717,-153.0,0.00021918,2]
[367834600,1750939868726,-153.0,0.00021918,2]
[367834601,1750939868736,-153.0,0.00021918,2]
[367834602,1750939868745,-153.0,0.00021918,2]
[367834603,1750939868754,-153.0,0.00021918,2]
[367834604,1750939868763,-83.55928155,0.00021918,2]
[367834605,1750939869447,-500.0,0.00016438,2]
[367834606,1750939869456,-460.0,0.00016438,2]
[367834607,1750939869466,-460.0,0.00016438,2]
[367834608,1750939869477,-460.0,0.00016712,2]
[367834609,1750939869487,-500.0,0.00016712,2]
[367834610,1750939869498,-460.0,0.00016712,2]
[367834611,1750939869508,-460.0,0.00016712,2]
[367834612,1750939869520,-460.0,0.00016986,2]
[367834613,1750939869531,-460.0,0.00016986,2]
[367834614,1750939869540,-587.75,0.00016986,2]
[367834615,1750939869551,-460.0,0.00016986,2]
[367834616,1750939869561,-926.62,0.0001726,2]
[367834617,1750939869571,-460.0,0.0001726,2]
[367834618,1750939869583,-460.0,0.0001726,2]
[367834619,1750939869595,-926.62,0.00017534,2]
[367834620,1750939869605,-460.0,0.00017534,2]
[367834621,1750939869616,-460.0,0.00017534,2]
[367834622,1750939869627,-926.62,0.00017808,2]
[367834623,1750939869639,-460.0,0.00017808,2]
[367834624,1750939869648,-460.0,0.00017808,2]
[367834625,1750939869659,-926.62,0.00018082,2]
[367834626,1750939869668,-460.0,0.00018082,2]
[367834627,1750939869678,-460.0,0.00018082,2]
[367834628,1750939869687,-500.0,0.00018355,2]
[367834629,1750939869696,-500.0,0.00018355,2]
[367834630,1750939869705,-486.45,0.00018355,2]
[367834631,1750939869715,-500.0,0.00018355,2]
[367834632,1750939869724,-460.0,0.00018356,2]
[367834633,1750939869734,-926.62,0.00018356,2]
[367834634,1750939869743,-460.0,0.00018356,2]
[367834635,1750939869752,-460.0,0.00018356,2]
[367834636,1750939869762,-460.0,0.0001863,2]
[367834637,1750939869772,-926.62,0.0001863,2]
[367834638,1750939869781,-485.13560277,0.0001863,2]
[367834639,1750939869791,-460.0,0.00018904,2]
[367834640,1750939869800,-926.62,0.00018904,2]
[367834641,1750939869809,-460.0,0.00018904,2]
[367834642,1750939869819,-460.0,0.00019178,2]
[367834643,1750939869828,-926.62,0.00019178,2]
[367834644,1750939869838,-460.0,0.00019178,2]
[367834645,1750939869847,-800.0,0.00019437,2]
[367834646,1750939869856,-800.0,0.00019437,2]
[367834647,1750939869866,-800.0,0.00019437,2]
[367834648,1750939869875,-800.0,0.00019437,2]
[367834649,1750939869884,-800.0,0.00019437,2]
[367834650,1750939869893,-800.0,0.00019437,2]
[367834651,1750939869902,-800.0,0.00019437,2]
[367834652,1750939869911,-460.0,0.00019452,2]
[367834653,1750939869921,-926.62,0.00019452,2]
[367834654,1750939869930,-382.36234047,0.00019452,2]
[367834655,1750939869939,-460.0,0.00019726,2]
[367834656,1750939869949,-926.62,0.00019726,2]
[367834657,1750939869958,-460.0,0.0002,2]
[367834658,1750939869967,-926.62,0.0002,2]
[367834659,1750939869977,-460.0,0.00020273,2]
[367834660,1750939869987,-460.0,0.00020547,2]
[367834661,1750939869997,-460.0,0.00020821,2]
[367834662,1750939870007,-593.60539775,0.00021095,2]
[367834663,1750939870016,-69.44071845,0.00021918,2]
[367834664,1750939870027,-153.0,0.00021918,2]
[367834665,1750939870037,-153.0,0.00021918,2]
[367834666,1750939870046,-153.0,0.00021918,2]
[367834667,1750939870055,-153.0,0.00021918,2]
[367834668,1750939870064,-153.0,0.00021918,2]
[367834669,1750939870074,-153.0,0.00021918,2]
[367834670,1750939870085,-153.0,0.00021918,2]
[367834671,1750939870094,-153.0,0.00021918,2]
[367834672,1750939870103,-153.0,0.00021918,2]
[367834673,1750939870112,-153.0,0.00021918,2]
[367834674,1750939870121,-153.0,0.00021918,2]
[367834675,1750939870130,-153.0,0.00021918,2]
[367834676,1750939870139,-153.0,0.00021918,2]
[367834677,1750939870149,-153.0,0.00021918,2]
[367834678,1750939870158,-153.0,0.00021918,2]
[367834679,1750939870168,-153.0,0.00021918,2]
[367834680,1750939870177,-153.0,0.00021918,2]
[367834681,1750939870186,-153.0,0.00021918,2]
[367834682,1750939870195,-153.0,0.00021918,2]
[367834683,1750939870205,-153.0,0.00021918,2]
[367834684,1750939870214,-153.0,0.00021918,2]
[367834685,1750939870223,-153.0,0.00021918,2]
[367834686,1750939870233,-153.0,0.00021918,2]
[367834687,1750939870242,-153.0,0.00021918,2]
[367834688,1750939870251,-153.0,0.00021918,2]
[367834689,1750939870260,-153.0,0.00021918,2]
[367834690,1750939870269,-153.0,0.00021918,2]
[367834691,1750939870277,-153.0,0.00021918,2]
[367834692,1750939870287,-153.0,0.00021918,2]
[367834693,1750939870297,-153.0,0.00021918,2]
[367834694,1750939870306,-153.0,0.00021918,2]
[367834695,1750939870316,-153.0,0.00021918,2]
[367834696,1750939870325,-153.0,0.00021918,2]
[367834697,1750939870335,-153.0,0.00021918,2]
[367834698,1750939870344,-153.0,0.00021918,2]
[367834699,1750939870353,-153.0,0.00021918,2]
[367834700,1750939870362,-153.0,0.00021918,2]
[367834701,1750939870371,-153.0,0.00021918,2]
[367834702,1750939870380,-153.0,0.00021918,2]
[367834703,1750939870389,-153.0,0.00021918,2]
[367834704,1750939870398,-153.0,0.00021918,2]
[367834705,1750939870406,-153.0,0.00021918,2]
[367834706,1750939870415,-153.0,0.00021918,2]
[367834707,1750939870424,-153.0,0.00021918,2]
[367834708,1750939870433,-153.0,0.00021918,2]
[367834709,1750939870442,-153.0,0.00021918,2]
[367834710,1750939870451,-153.0,0.00021918,2]
[367834711,1750939870460,-153.0,0.00021918,2]
[367834712,1750939870469,-153.0,0.00021918,2]
[367834713,1750939870478,-153.0,0.00021918,2]
[367834714,1750939870487,-153.0,0.00021918,2]
[367834715,1750939870497,-153.0,0.00021918,2]
[367834716,1750939870506,-153.0,0.00021918,2]
[367834717,1750939870515,-153.0,0.00021918,2]
[367834718,1750939870524,-151.0,0.00021918,2]
[367834719,1750939870533,-152.280541,0.00021918,2]
[367834720,1750939870543,-166.0,0.00021918,2]
[367834721,1750939870552,-151.0,0.00021918,2]
[367834722,1750939870560,-151.0,0.00021918,2]
[367834723,1750939870568,-153.21148241,0.00021918,2]
[367834724,1750939870577,-151.0,0.00021918,2]
[367834725,1750939870586,-151.0,0.00021918,2]
[367834726,1750939870597,-151.0,0.00021918,2]
[367834727,1750939870607,-153.03134886,0.00021918,2]
[367834728,1750939870616,-151.0,0.00021918,2]
[367834729,1750939870625,-151.0,0.00021918,2]
[367834730,1750939870636,-151.0,0.00021918,2]
[367834731,1750939870645,-151.0,0.00021918,2]
[367834732,1750939870654,-151.0,0.00021918,2]
[367834733,1750939870663,-151.0,0.00021918,2]
[367834734,1750939870673,-151.0,0.00021918,2]
[367834735,1750939870682,-151.0,0.00021918,2]
[367834736,1750939870692,-151.0,0.00021918,2]
[367834737,1750939870702,-151.0,0.00021918,2]
[367834738,1750939870712,-151.0,0.00021918,2]
[367834739,1750939870721,-151.0,0.00021918,2]
[367834740,1750939870730,-151.0,0.00021918,2]
[367834741,1750939870739,-168.0,0.00021959,2]
[367834742,1750939870748,-1000.0,0.00021966,2]
[367834743,1750939870757,-500.0,0.00021973,2]
[367834744,1750939870767,-500.0,0.00021973,2]
[367834745,1750939870776,-500.0,0.00021973,2]
[367834746,1750939870785,-500.0,0.00021973,2]
[367834747,1750939870794,-500.0,0.00021973,2]
[367834748,1750939870803,-500.0,0.00021973,2]
[367834749,1750939870813,-500.0,0.00021973,2]
[367834750,1750939870822,-500.0,0.00021973,2]
[367834751,1750939870831,-500.0,0.00021973,2]
[367834752,1750939870840,-153.20695369,0.00021973,2]
[367834753,1750939870849,-500.0,0.00021973,2]
[367834754,1750939870858,-500.0,0.00021973,2]
[367834755,1750939870867,-198.07410546,0.00021973,2]
[367834756,1750939870877,-500.0,0.00021973,2]
[367834757,1750939870886,-500.0,0.00021973,2]
[367834758,1750939870895,-500.0,0.00021973,2]
[367834759,1750939870905,-500.0,0.00021973,2]
[367834760,1750939870915,-501.77857979,0.00021973,2]
[367834761,1750939870924,-500.0,0.00021973,2]
[367834762,1750939870934,-500.44087651,0.00021973,2]
[367834763,1750939870944,-500.0,0.00021973,2]
[367834764,1750939870953,-500.0,0.00021973,2]
[367834765,1750939870963,-500.0,0.00021973,2]
[367834766,1750939870973,-500.0,0.00021973,2]
[367834767,1750939870984,-500.0,0.00021973,2]
[367834768,1750939870995,-500.0,0.00021973,2]
[367834769,1750939871006,-600.0,0.00021973,2]
[367834770,1750939871016,-500.0,0.00021973,2]
[367834771,1750939871025,-158.22305744,0.00021973,2]
[367834772,1750940018945,193.496203,0.00013699,2]
[367834782,1750940365142,151.26899683,0.000157,2]
[367834797,1750940868567,2671.29117186,0.00026003,120]
[367834809,1750940965358,194.138939,0.00015764,2]
[367834821,1750941032231,-300.0,0.00016251,2]
[367834822,1750941032243,-300.0,0.00016251,2]
[367834823,1750941032254,-1160.69707867,0.00016252,2]
[367834826,1750941037958,-18473.61284759,0.00016252,2]
[367834832,1750941038013,-5265.69007374,0.00016252,2]
[367834834,1750941038023,-3504.06932379,0.00016338,2]
[367834836,1750941038032,-20681.86830677,0.00016338,2]
[367834838,1750941038041,-1329.3,0.00016428,3]
[367834840,1750941038051,-664.65,0.00016428,3]
[367834842,1750941038060,-332.32,0.00016428,3]
[367834843,1750941038069,-166.16,0.00016428,3]
[367834844,1750941038078,-166.16,0.00016428,3]
[367834845,1750941038087,-155.348,0.00016437,2]
[367834846,1750941038097,-179.76997411,0.00016438,2]
[367834847,1750941038106,-460.0,0.00016438,2]
[367834848,1750941038114,-460.0,0.00016438,2]
[367834849,1750941038123,-559.8043803,0.00016438,2]
[367834850,1750941038132,-460.0,0.00016438,2]
[367834851,1750941038142,-460.0,0.00016438,2]
[367834852,1750941038151,-460.0,0.00016438,2]
[367834853,1750941038160,-460.0,0.00016438,2]
[367834854,1750941038169,-246.52594672,0.00016438,2]
[367834855,1750941038179,-460.0,0.00016438,2]
[367834856,1750941038189,-460.0,0.00016438,2]
[367834857,1750941038198,-460.0,0.00016438,2]
[367834858,1750941038207,-341.94111027,0.00016438,2]
[367834859,1750941038218,-460.0,0.00016438,2]
[367834860,1750941038227,-460.0,0.00016438,2]
[367834861,1750941038237,-420.0,0.00016438,2]
[367834862,1750941038247,-175.4918916,0.00016438,2]
[367834863,1750941038256,-467.30328881,0.00016438,2]
[367834864,1750941038266,-460.0,0.00016438,2]
[367834865,1750941038275,-460.0,0.00016438,2]
[367834866,1750941038284,-460.0,0.00016438,2]
[367834867,1750941038294,-285.47012378,0.00016438,2]
[367834868,1750941038304,-460.0,0.00016438,2]
[367834869,1750941038314,-460.0,0.00016438,2]
[367834870,1750941038325,-460.0,0.00016438,2]
[367834871,1750941038335,-460.0,0.00016438,2]